bitfinex/quotes_ETHUSD_20241119
["timestamp","ask_amount","ask_price","bid_price","bid_amount"]
[1732041106180,4.18978,3131.6,3130.8,0.31939]
[1732041106386,4.18936,3132.0,3131.1,0.31936]
[1732041106567,4.18936,3132.0,3130.8,5.0]
[1732041106568,3.19321,3131.7,3130.9,0.31939]
[1732041106821,0.9965,3132.0,3131.2,0.31936]
[1732041106822,3.19308,3131.8,3131.2,0.31936]
[1732041107095,3.19308,3131.8,3131.0,0.63876]
[1732041107096,3.19317,3131.7,3131.0,0.63876]
[1732041107293,0.9965,3132.0,3130.9,3.0]
[1732041107463,3.1921,3132.8,3130.9,3.0]
[1732041107464,2.348566,3132.5,3131.9,0.31929]
[1732041107667,1.276066,3132.5,3131.8,0.31929]
[1732041108021,3.19242,3132.5,3131.8,0.3193]
[1732041108203,1.0725,3133.0,3131.9,0.03525082]
[1732041108369,1.0725,3133.0,3131.5,0.31933]
[1732041108569,1.0725,3133.0,3132.1,0.63853]
[1732041108775,1.0725,3133.0,3132.1,0.31926]
[1732041109092,0.426427,3132.9,3132.1,0.31926]
[1732041109334,1.0725,3133.0,3132.5,0.31923]
[1732041109512,1.0789,3133.5,3132.6,0.31921]
[1732041109797,1.0789,3133.5,3132.7,0.3192]
[1732041109998,1.0789,3133.5,3132.3,3.0]
[1732041110205,1.0789,3133.5,3132.8,0.3192]
[1732041110421,1.0789,3133.5,3132.6,0.31921]
[1732041110573,1.0789,3134.2,3132.9,0.31918]
[1732041110897,1.0789,3134.2,3132.3,3.0]
[1732041110898,5.544923,3134.2,3133.1,0.31917]
[1732041111105,5.544923,3134.2,3132.3,3.0]
[1732041111106,2.354313,3134.2,3133.3,0.31915]
[1732041111459,2.354313,3134.2,3133.4,0.31913]
[1732041111757,1.0789,3134.2,3132.9,0.7952]
[1732041112097,3.19081,3134.0,3133.0,0.31917]
[1732041112307,0.428949,3134.1,3133.2,0.31915]
[1732041112507,0.428949,3134.1,3133.0,0.31918]
[1732041112508,3.619669,3134.1,3133.0,0.31918]
[1732041112803,0.5493769,3134.0,3133.2,0.31915]
[1732041113006,1.0789,3134.2,3133.2,0.31915]
[1732041113357,1.0789,3134.2,3133.2,0.31916]
[1732041113564,1.0789,3134.2,3132.9,0.7952]
[1732041113866,4.26952,3134.2,3132.9,0.7952]
[1732041114286,3.19082,3134.0,3132.9,0.7952]
[1732041114484,0.55,3133.8,3132.9,0.7952]
[1732041115593,0.319082,3133.9,3132.9,0.7952]
[1732041115916,1.0789,3134.2,3132.9,0.7952]
[1732041115917,0.55,3134.0,3132.9,0.7952]
[1732041116074,1.0789,3134.2,3132.9,0.7952]
[1732041116276,1.0789,3134.2,3132.9,3.7952]
[1732041116484,1.0175,3134.5,3132.9,0.7952]
[1732041116889,3.19052,3134.3,3132.9,0.7952]
[1732041117090,4.20783,3134.5,3132.9,0.7952]
[1732041117389,3.74041,3134.4,3132.9,0.7952]
[1732041117610,0.55,3134.4,3132.9,0.7952]
[1732041117811,0.55,3134.0,3132.9,0.7952]
[1732041118153,1.5675,3133.7,3132.4,0.7952]
[1732041118354,0.55,3133.6,3132.4,3.7952]
[1732041119059,0.55,3133.6,3132.4,0.7952]
[1732041119227,3.19146,3133.4,3132.4,0.7952]
[1732041119530,0.55,3133.9,3132.4,0.7952]
[1732041119700,3.19163,3133.2,3132.4,0.7952]
[1732041119905,3.19178,3133.1,3132.4,0.7952]
[1732041120106,3.19159,3133.3,3132.4,0.7952]
[1732041120304,0.45881589,3133.3,3132.4,0.7952]
[1732041120612,3.19133,3133.5,3132.4,0.7952]
[1732041120816,0.55,3133.4,3132.4,0.7952]
[1732041121194,3.19154,3133.3,3132.4,0.7952]
[1732041121394,3.19134,3133.5,3132.4,0.7952]
[1732041121592,0.55,3133.6,3132.4,0.7952]
[1732041121796,4.20823,3134.1,3132.6,3.0]
[1732041122038,3.19073,3134.1,3132.8,0.318]
[1732041122235,3.19051,3134.3,3133.2,0.7952]
[1732041122405,0.319051,3134.3,3133.2,0.7952]
[1732041122602,3.19047,3134.4,3133.2,0.7952]
[1732041122946,0.9998,3134.5,3133.2,4.1132]
[1732041123300,3.19063,3134.2,3133.2,4.1132]
[1732041123499,0.9998,3134.5,3133.2,4.1132]
[1732041123811,3.19078,3134.1,3133.2,1.1132]
[1732041124024,3.1906,3134.2,3133.2,1.1132]
[1732041124340,3.19095,3133.9,3133.2,1.1132]
[1732041124560,3.19062,3134.2,3133.2,1.1132]
[1732041124727,3.19079,3134.1,3133.2,1.1132]
[1732041124931,3.509869,3134.1,3133.2,1.1132]
[1732041125155,3.191,3133.9,3133.2,1.1132]
[1732041125452,3.1908,3134.1,3133.2,1.1132]
[1732041125961,3.191,3133.9,3133.2,1.1132]
[1732041126114,3.19112,3133.7,3133.2,0.7952]
[1732041126323,0.638212,3133.7,3132.8,0.7952]
[1732041126511,3.19067,3134.2,3132.9,0.318]
[1732041126815,0.55,3134.4,3132.9,0.318]
[1732041127037,3.19138,3133.5,3132.9,0.318]
[1732041127457,3.19143,3133.4,3132.9,0.318]
[1732041127623,3.19138,3133.5,3132.9,0.318]
[1732041128227,0.55,3134.4,3132.9,3.318]
[1732041128424,3.19088,3134.0,3133.1,0.318]
[1732041128625,0.55,3134.1,3133.1,0.318]
[1732041128854,3.19085,3134.0,3133.1,0.318]
[1732041129066,3.19113,3133.7,3133.1,0.318]
[1732041129274,0.55,3134.4,3133.1,0.318]
[1732041129492,0.55,3134.0,3133.1,0.318]
[1732041129689,3.19148,3133.4,3133.1,0.318]
[1732041130148,3.19152,3133.3,3133.1,0.318]
[1732041130346,3.19158,3133.3,3132.5,0.7954]
[1732041130576,3.19199,3132.9,3132.5,0.7954]
[1732041131047,3.19112,3133.7,3132.5,0.7954]
[1732041131388,0.55,3133.9,3132.8,0.7954]
[1732041131569,0.55,3134.0,3132.8,0.7954]
[1732041131779,3.74087,3134.0,3132.8,0.7954]
[1732041131978,0.55,3133.8,3132.8,0.7954]
[1732041132296,3.19091,3133.9,3132.8,0.7954]
[1732041132533,3.19139,3133.5,3132.8,0.7954]
[1732041132705,3.19118,3133.7,3132.8,0.7954]
[1732041133149,0.55,3133.5,3132.8,0.7954]
[1732041133350,3.19183,3133.0,3132.4,0.7954]
[1732041133601,3.19173,3133.1,3132.4,0.7954]
[1732041133898,3.19199,3132.9,3132.4,0.7954]
[1732041134247,6.38401,3132.9,3132.4,0.7954]
[1732041134493,3.192,3132.9,3132.4,0.7954]
[1732041134998,3.19204,3132.8,3132.4,0.7954]
[1732041135293,0.55,3133.0,3132.4,0.7954]
[1732041135503,3.19193,3132.9,3132.4,0.7954]
[1732041135993,3.19221,3132.7,3132.4,0.7954]
[1732041136374,6.38398,3132.9,3132.4,0.7954]
[1732041136551,3.19172,3133.1,3132.4,0.7954]
[1732041137114,3.19222,3132.7,3132.4,0.7954]
[1732041137779,3.19218,3132.7,3131.8,1.1134]
[1732041138065,3.19218,3132.7,3131.8,0.7954]
[1732041138262,3.19224,3132.6,3131.8,0.7954]
[1732041138456,3.19224,3132.6,3131.8,3.7954]
[1732041139001,3.19253,3132.4,3131.8,0.7954]
[1732041139360,6.38506,3132.4,3131.8,0.7954]
[1732041139579,3.19229,3132.6,3131.8,0.7954]
[1732041139811,3.1924,3132.5,3131.8,3.7954]
[1732041140315,3.19253,3132.4,3131.8,3.7954]
[1732041141120,3.19259,3132.3,3131.8,3.7954]
[1732041141418,3.19258,3132.3,3131.8,3.7954]
[1732041141814,3.74238,3132.5,3131.8,3.7954]
[1732041142117,3.19233,3132.5,3131.8,3.7954]
[1732041142319,3.19223,3132.7,3131.8,3.7954]
[1732041142522,0.55,3132.9,3131.8,3.7954]
[1732041142722,3.19262,3132.3,3131.8,3.7954]
[1732041142891,3.19265,3132.2,3131.8,0.7954]
[1732041143092,0.55,3132.7,3131.8,0.7954]
[1732041143410,0.55,3132.7,3131.1,0.318]
[1732041143411,3.19271,3132.2,3131.2,5.7954]
[1732041143718,3.19303,3131.9,3131.2,0.7954]
[1732041143924,3.19281,3132.1,3131.2,0.7954]
[1732041144103,3.19248,3132.4,3131.4,5.0]
[1732041144524,3.19214,3132.7,3131.5,3.7954]
[1732041144680,3.19133,3133.5,3131.9,5.0]
[1732041144880,3.192,3132.9,3132.1,0.7954]
[1732041145237,3.19214,3132.7,3132.1,0.7954]
[1732041145521,3.192,3132.9,3132.1,0.7954]
[1732041145729,3.19178,3133.1,3132.1,0.7954]
[1732041146206,3.19158,3133.3,3132.1,0.7954]
[1732041146413,0.08041818,3133.5,3132.4,0.7954]
[1732041146723,3.19154,3133.3,3132.4,0.7954]
[1732041147088,3.0,3133.8,3132.4,0.7954]
[1732041147291,0.728873,3133.7,3132.4,0.7954]
[1732041147497,3.19178,3133.1,3132.4,0.7954]
[1732041147729,0.728873,3133.7,3132.4,0.7954]
[1732041147927,0.55,3133.1,3132.4,0.7954]
[1732041148421,3.19228,3132.6,3132.4,0.7954]
[1732041148629,3.19233,3132.5,3132.4,0.7954]
[1732041148848,3.19211,3132.8,3132.0,0.7954]
[1732041149579,0.55,3133.1,3132.0,0.7954]
[1732041149823,3.19203,3132.8,3132.0,0.7954]
[1732041150861,3.19215,3132.7,3132.0,0.7954]
[1732041151022,3.19203,3132.8,3132.0,0.7954]
[1732041151179,3.19224,3132.6,3132.0,0.7954]
[1732041151550,0.638427,3132.6,3131.3,0.7954]
[1732041151830,3.19276,3132.1,3131.3,0.7954]
[1732041152323,3.19301,3131.9,3131.3,0.7954]
[1732041152537,3.19292,3132.0,3131.3,0.7954]
[1732041152690,3.19315,3131.7,3131.3,0.7954]
[1732041152893,0.55,3131.9,3131.3,0.7954]
[1732041153131,3.19269,3132.2,3131.3,0.7954]
[1732041153302,3.19246,3132.4,3131.4,5.0]
[1732041153511,3.74261,3132.3,3131.3,0.7954]
[1732041153686,3.19276,3132.1,3131.3,0.7954]
[1732041154211,3.19281,3132.1,3131.3,0.7954]
[1732041154409,3.19292,3132.0,3131.3,0.7954]
[1732041154658,3.19345,3131.4,3130.6,5.0]
[1732041154816,3.19384,3131.1,3130.7,0.7954]
[1732041155030,3.7438,3131.1,3130.3,0.7954]
[1732041155233,0.55,3131.1,3130.3,0.7954]
[1732041155524,0.55,3131.4,3130.3,0.7954]
[1732041155733,0.55,3131.6,3130.3,0.7954]
[1732041156115,0.55,3131.1,3130.3,0.7954]
[1732041156559,3.19347,3131.4,3130.3,0.7954]
[1732041156560,0.55,3131.3,3130.3,0.7954]
[1732041157135,3.19347,3131.4,3130.3,3.7954]
[1732041157331,3.74339,3131.5,3130.3,3.7954]
[1732041157671,3.74339,3131.5,3129.7,0.83]
[1732041157672,0.55,3131.5,3130.7,3.7954]
[1732041157824,3.74315,3131.7,3130.8,0.02074962]
[1732041158020,3.19315,3131.7,3130.7,3.8161904]
[1732041158221,3.19328,3131.6,3130.7,3.8161904]
[1732041158423,3.74297,3131.9,3130.7,3.8161904]
[1732041158626,3.343,3135.0,3130.7,3.8161904]
[1732041158627,1.0122,3132.7,3131.1,3.0]
[1732041158839,0.07824257,3133.0,3131.6,3.7909]
[1732041159064,1.0122,3133.1,3131.7,0.31426459]
[1732041159065,3.19265,3132.2,3131.7,0.31426459]
[1732041159363,3.1922,3132.7,3131.6,0.7909]
[1732041159571,3.1922,3132.7,3131.7,0.31426459]
[1732041159923,3.19235,3132.5,3131.7,0.31426459]
[1732041160145,3.19251,3132.4,3131.6,3.7909]
[1732041160465,3.19216,3132.7,3131.6,0.7909]
[1732041160677,3.19224,3132.6,3131.6,0.7909]
[1732041161318,3.19196,3132.9,3131.6,0.7909]
[1732041161523,3.19197,3132.9,3131.7,5.0]
[1732041162128,3.1921,3132.8,3131.7,5.0]
[1732041162329,3.19197,3132.9,3131.8,3.0]
[1732041162529,3.19194,3132.9,3131.9,0.7909]
[1732041162769,0.55,3133.0,3131.9,0.7909]
[1732041162977,3.19174,3133.1,3131.9,0.7909]
[1732041163470,3.19166,3133.2,3132.3,0.7909]
[1732041163644,3.19154,3133.3,3132.3,0.7909]
[1732041164046,3.19165,3133.2,3132.3,0.7909]
[1732041164670,0.55,3133.1,3132.3,0.7909]
[1732041165075,3.19207,3132.8,3132.3,0.7909]
[1732041165578,3.19224,3132.6,3132.3,0.7909]
[1732041165779,3.19229,3132.6,3131.9,0.7909]
[1732041166082,0.55,3132.7,3131.9,0.7909]
[1732041166780,4.22156,3133.5,3132.2,5.0]
[1732041166781,3.1917,3133.2,3132.2,5.0]
[1732041166983,3.19183,3133.0,3132.3,0.7909]
[1732041167341,3.19165,3133.2,3132.3,0.7909]
[1732041167876,1.0302,3133.5,3132.3,0.7909]
[1732041167877,3.19145,3133.4,3132.3,0.7909]
[1732041168110,3.7416,3133.3,3132.3,3.7909]
[1732041168480,0.55,3133.3,3132.3,3.7909]
[1732041169182,3.19114,3133.7,3132.7,3.7909]
[1732041170181,4.27747,3133.9,3132.7,3.7909]
[1732041170336,3.74117,3133.7,3132.7,3.7909]
[1732041170541,0.55,3133.5,3132.7,3.7909]
[1732041170760,0.55,3133.7,3132.7,0.7909]
[1732041171083,0.55,3133.0,3132.7,0.7909]
[1732041171253,3.19203,3132.8,3131.9,5.0]
[1732041171456,0.55,3132.5,3132.0,3.0]
[1732041171656,0.55,3132.5,3132.1,0.7909]
[1732041171861,0.55,3132.8,3132.1,0.7909]
[1732041172367,0.55,3132.6,3132.1,0.7909]
[1732041172688,0.55,3132.8,3132.1,0.7909]
[1732041172882,0.55,3132.7,3132.1,0.7909]
[1732041173464,3.74216,3132.7,3132.1,0.7909]
[1732041173650,0.55,3132.7,3132.1,0.7909]
[1732041173951,3.7422,3132.7,3132.1,0.7909]
[1732041174382,0.55,3132.5,3132.1,0.7909]
[1732041174581,3.19234,3132.5,3132.1,0.7909]
[1732041174780,3.19209,3132.8,3132.1,0.7909]
[1732041174781,0.55,3132.4,3132.1,0.7909]
[1732041174984,1.0447,3133.1,3132.1,0.7909]
[1732041174985,0.55,3132.9,3132.1,0.7909]
[1732041175770,3.74199,3132.9,3132.1,0.7909]
[1732041175950,3.19203,3132.8,3132.1,0.7909]
[1732041176369,0.55,3132.7,3132.1,0.7909]
[1732041176795,3.74195,3132.9,3132.1,0.7909]
[1732041177006,3.19241,3132.5,3132.1,0.7909]
[1732041177221,3.74264,3132.2,3132.1,0.7909]
[1732041177763,3.74253,3132.4,3132.1,0.7909]
[1732041177964,0.55,3132.4,3132.1,0.7909]
[1732041179416,3.19194,3132.9,3132.1,5.7909]
[1732041179614,3.19194,3132.9,3132.2,3.0]
[1732041179790,3.19209,3132.8,3132.2,3.0]
[1732041179971,3.49145,3133.4,3132.2,3.0]
[1732041180171,3.19168,3133.2,3132.1,0.7909]
[1732041180481,3.19223,3132.7,3132.1,0.7909]
[1732041180677,0.55,3132.5,3132.1,0.7909]
[1732041180946,3.74238,3132.5,3132.1,0.7909]
[1732041181416,3.74237,3132.5,3132.1,0.7909]
[1732041181707,6.9348,3132.5,3132.1,0.7909]
[1732041181897,3.74237,3132.5,3132.1,0.7909]
[1732041182622,0.55,3132.6,3132.1,0.7909]
[1732041182972,3.19182,3133.1,3132.1,5.7909]
[1732041183173,3.19168,3133.2,3132.1,5.7909]
[1732041183371,3.19188,3133.0,3132.2,0.34]
[1732041183690,3.19188,3133.0,3132.2,3.34]
[1732041184416,0.55,3132.9,3132.2,3.34]
[1732041185101,0.55,3132.9,3132.2,0.34]
[1732041185612,3.19254,3132.3,3132.2,0.34]
[1732041185843,6.19117,3133.7,3132.2,0.34]
[1732041186016,3.0,3133.8,3132.2,0.34]
[1732041186220,3.19254,3132.3,3132.2,0.34]
[1732041186732,3.19245,3132.4,3132.2,0.34]
[1732041186897,1.0831,3133.5,3132.2,0.34]
[1732041187250,3.19172,3133.1,3132.2,3.34]
[1732041187435,1.0831,3133.5,3132.2,3.34]
[1732041187643,0.01,3133.2,3132.2,0.34]
[1732041187802,3.19254,3132.3,3132.2,0.34]
[1732041188301,3.74254,3132.3,3132.2,0.34]
[1732041189432,0.55,3131.5,3131.0,0.7894]
[1732041189639,3.74342,3131.5,3131.3,0.02]
[1732041189820,0.55,3131.4,3131.3,0.02]
[1732041190137,0.55,3131.8,3131.3,0.02]
[1732041190319,3.74288,3132.0,3131.3,0.02]
[1732041190496,0.55,3131.8,3131.3,0.02]
[1732041190902,3.19316,3131.7,3131.3,0.02]
[1732041191200,3.74306,3131.8,3131.0,0.7894]
[1732041191602,0.55,3131.8,3131.0,0.7894]
[1732041191815,3.19302,3131.9,3131.0,0.7894]
[1732041191816,3.74359,3131.3,3131.0,0.7894]
[1732041192003,3.19374,3131.2,3131.0,0.7894]
[1732041192218,0.55,3131.6,3131.0,0.7894]
[1732041192619,0.55,3131.3,3131.0,0.7894]
[1732041193314,3.74356,3131.3,3131.0,0.7894]
[1732041193702,0.55,3131.3,3131.0,0.7894]
[1732041194173,0.55,3131.7,3131.0,0.7894]
[1732041194312,3.19302,3131.9,3131.1,0.34]
[1732041194523,3.19268,3132.2,3131.1,0.34]
[1732041194710,4.20295,3132.4,3131.3,3.0]
[1732041194908,1.0472,3133.1,3131.6,5.0]
[1732041195104,6.38483,3132.5,3131.6,5.0]
[1732041195304,3.19216,3132.7,3131.7,3.0]
[1732041195562,3.1915,3133.4,3132.2,0.7894]
[1732041195563,4.23868,3133.4,3132.2,0.7894]
[1732041195858,3.19065,3134.2,3132.5,3.0]
[1732041195859,3.19111,3133.7,3132.5,3.0]
[1732041196004,1.0502,3133.8,3132.2,0.7894]
[1732041196204,3.19163,3133.2,3132.2,0.7894]
[1732041196960,3.19145,3133.4,3132.2,0.7894]
[1732041197346,3.19168,3133.2,3132.2,0.7894]
[1732041197544,3.19148,3133.4,3132.6,5.0]
[1732041197751,3.19165,3133.2,3132.4,5.0]
[1732041197915,3.19165,3133.2,3132.2,5.82380771]
[1732041198252,3.19152,3133.3,3132.3,3.0]
[1732041198467,3.19166,3133.2,3132.2,0.7894]
[1732041198823,3.19203,3132.8,3132.2,0.7894]
[1732041199038,0.55,3132.9,3132.2,0.7894]
[1732041199561,0.55,3132.7,3132.2,0.7894]
[1732041200060,0.55,3132.9,3132.2,0.7894]
[1732041200352,3.74196,3132.9,3132.2,0.7894]
[1732041200560,0.55,3132.7,3132.2,0.7894]
[1732041200713,3.74219,3132.7,3132.2,0.7894]
[1732041200914,0.55,3132.7,3132.2,0.7894]
[1732041201120,3.74235,3132.5,3132.2,0.7894]
[1732041201354,3.74234,3132.5,3131.5,5.0]
[1732041201565,3.74234,3132.5,3131.6,0.7894]
[1732041201806,3.19284,3132.1,3131.6,0.7894]
[1732041202080,0.55,3132.0,3131.6,0.7894]
[1732041202214,3.74285,3132.0,3131.6,0.7894]
[1732041202415,0.55,3132.0,3131.6,0.7894]
[1732041202659,3.19131,3133.5,3132.1,0.7894]
[1732041202825,1.0195,3133.6,3132.1,0.7894]
[1732041202826,3.19221,3132.7,3132.1,0.7894]
[1732041203031,3.19221,3132.7,3132.1,3.7894]
[1732041203217,3.19193,3132.9,3132.1,3.7894]
[1732041203421,6.38395,3132.9,3132.1,3.7894]
[1732041203771,3.19215,3132.7,3132.1,3.7894]
[1732041203931,0.55,3132.8,3132.1,0.7894]
[1732041204328,3.74185,3133.0,3132.1,0.7894]
[1732041204541,0.55,3132.7,3132.1,0.7894]
[1732041205321,0.55,3132.5,3131.6,8.7894]
[1732041205521,3.95416,3132.5,3131.6,8.7894]
[1732041205722,0.55,3132.3,3131.6,5.7894]
[1732041206279,1.09661448,3133.0,3131.6,0.7894]
[1732041206424,3.19262,3132.3,3131.6,0.7894]
[1732041206624,4.26597,3133.4,3132.1,0.7894]
[1732041206822,3.19131,3133.6,3132.2,0.06209017]
[1732041207071,3.19188,3133.0,3132.1,0.7894]
[1732041207372,3.19209,3132.8,3132.1,0.7894]
[1732041207518,3.19188,3133.0,3132.1,3.7894]
[1732041207719,6.38296,3133.4,3132.1,3.7894]
[1732041207951,3.19146,3133.4,3132.1,3.7894]
[1732041208158,3.19146,3133.4,3132.2,0.7894]
[1732041208616,1.0745,3133.7,3132.2,0.7894]
[1732041208617,3.19186,3133.0,3132.2,0.7894]
[1732041208822,3.19164,3133.2,3132.5,5.0]
[1732041209054,3.19173,3133.1,3132.5,5.0]
[1732041209249,3.19164,3133.2,3132.5,5.0]
[1732041209476,0.55,3133.3,3132.5,5.0]
[1732041209822,3.74153,3133.3,3132.5,5.0]
[1732041210019,3.19119,3133.7,3132.6,0.7894]
[1732041210217,3.19133,3133.5,3132.6,0.7894]
[1732041210760,3.19143,3133.4,3132.6,0.7894]
[1732041210936,3.19124,3133.6,3133.0,5.0]
[1732041212281,3.19137,3133.5,3133.0,5.0]
[1732041212738,3.19152,3133.3,3133.0,5.0]
[1732041212937,0.55,3133.6,3133.0,5.0]
[1732041213145,0.55,3133.8,3133.0,5.0]
[1732041213390,3.19052,3134.3,3133.4,5.0]
[1732041213682,3.19019,3134.6,3133.8,5.7894]
[1732041214044,1.0822,3135.0,3133.8,5.7894]
[1732041214247,3.18995,3134.9,3133.8,5.7894]
[1732041214584,3.18989,3134.9,3133.8,0.7894]
[1732041214815,3.1907,3134.2,3133.8,0.7894]
[1732041215119,3.1907,3134.2,3133.6,3.0]
[1732041215120,3.19131,3133.5,3133.4,0.7894]
[1732041215322,3.19131,3133.5,3133.1,5.7894]
[1732041215323,3.19143,3133.4,3133.1,5.7894]
[1732041215606,3.19108,3133.8,3133.1,0.7894]
[1732041215833,0.319108,3133.7,3133.1,0.7894]
[1732041215964,3.510298,3133.7,3133.1,0.7894]
[1732041216159,3.19138,3133.5,3133.1,0.7894]
[1732041216406,0.55,3133.5,3133.1,0.7894]
[1732041216628,3.74132,3133.5,3133.1,0.7894]
[1732041216907,1.0822,3134.3,3133.1,0.7894]
[1732041216908,3.19101,3133.8,3133.1,0.7894]
[1732041217115,3.19082,3134.0,3133.1,0.7894]
[1732041217268,3.19064,3134.2,3133.2,5.0]
[1732041217468,3.19089,3134.0,3133.1,0.7894]
[1732041219186,3.1905,3134.3,3133.2,0.06366571]
[1732041219509,3.1907,3134.1,3133.1,0.7894]
[1732041219710,3.19132,3133.5,3133.1,0.7894]
[1732041220007,3.19128,3133.6,3133.1,0.7894]
[1732041220524,3.1907,3134.1,3132.5,0.7926]
[1732041220525,0.55,3133.7,3132.5,0.7926]
[1732041220677,3.19171,3133.2,3132.5,0.7926]
[1732041220880,3.19174,3133.1,3132.5,0.7926]
[1732041221427,0.55,3133.6,3132.5,0.7926]
[1732041221709,3.19195,3132.9,3132.5,0.7926]
[1732041221911,3.19177,3133.1,3132.5,0.7926]
[1732041222098,3.19183,3133.0,3132.5,0.7926]
[1732041222608,3.74116,3133.7,3132.5,0.7926]
[1732041222920,3.1918,3133.1,3132.5,0.7926]
[1732041223270,0.55,3133.3,3132.5,0.7926]
[1732041223495,3.19155,3133.3,3132.5,0.7926]
[1732041223803,3.19143,3133.4,3132.5,5.7926]
[1732041223971,3.19132,3133.5,3132.5,5.7926]
[1732041224734,0.4138811,3133.8,3132.6,0.7926]
[1732041225019,3.19112,3133.7,3132.7,0.7926]
[1732041225205,3.19102,3133.8,3132.7,0.7926]
[1732041225681,3.19113,3133.7,3132.7,0.7926]
[1732041225887,3.19102,3133.8,3132.7,0.7926]
[1732041226225,3.19094,3133.9,3132.9,0.7926]
[1732041226371,3.19094,3133.9,3133.0,0.06366491]
[1732041226719,3.19094,3133.9,3132.9,0.7926]
[1732041226720,3.1916,3133.3,3132.9,0.7926]
[1732041226939,3.19139,3133.5,3132.9,0.7926]
[1732041227411,3.19155,3133.3,3132.9,0.7926]
[1732041227574,3.19182,3133.0,3132.9,0.7926]
[1732041227926,0.319155,3133.3,3132.6,0.7926]
[1732041227927,3.19195,3132.9,3132.6,0.7926]
[1732041228216,3.19174,3133.1,3132.6,0.7926]
[1732041228566,3.19195,3132.9,3132.6,0.7926]
[1732041228815,3.19204,3132.8,3132.6,0.7926]
[1732041229023,0.07821612,3133.7,3132.6,0.7926]
[1732041229173,3.19179,3133.1,3132.6,0.7926]
[1732041229372,3.19183,3133.0,3132.6,0.7926]
[1732041229596,3.19165,3133.2,3132.6,0.7926]
[1732041229917,3.19169,3133.2,3132.6,0.7926]
[1732041230125,3.19136,3133.5,3132.6,3.7926]
[1732041230332,3.19144,3133.4,3132.6,3.7926]
[1732041230480,3.19144,3133.4,3132.7,0.55]
[1732041230878,3.19161,3133.3,3132.6,3.7926]
[1732041231096,3.19175,3133.1,3132.6,3.7926]
[1732041231283,3.19184,3133.0,3132.6,0.7926]
[1732041231495,0.08063024,3134.0,3132.6,0.7926]
[1732041231717,3.19173,3133.1,3132.6,0.7926]
[1732041231926,3.19199,3132.9,3132.6,0.7926]
[1732041232091,0.01,3133.2,3131.8,5.0]
[1732041232290,0.01,3133.2,3131.3,5.0]
[1732041232291,3.19283,3132.1,3131.3,5.0]
[1732041232495,3.19172,3133.1,3129.2,15.93589293]
[1732041232496,3.19313,3131.8,3130.9,5.0]
[1732041232792,3.19313,3131.8,3131.0,0.318]
[1732041232998,3.19236,3132.5,3131.0,0.318]
[1732041233325,3.1924,3132.5,3131.3,5.0]
[1732041233757,3.19293,3132.0,3131.3,5.0]
[1732041233968,3.1931,3131.8,3131.3,5.0]
[1732041234619,3.0,3132.6,3131.0,0.36633763]
[1732041235016,3.19337,3131.5,3130.9,0.318]
[1732041235170,6.38682,3131.5,3131.1,0.318]
[1732041235464,3.19337,3131.5,3131.1,0.318]
[1732041236118,3.19318,3131.7,3131.1,0.318]
[1732041236319,3.19333,3131.6,3131.1,0.318]
[1732041236782,3.19333,3131.6,3131.0,0.6284]
[1732041237284,3.19286,3132.0,3131.0,0.6284]
[1732041237488,6.38578,3132.0,3131.0,0.6284]
[1732041237696,6.38579,3132.0,3131.0,0.6284]
[1732041237848,3.19305,3131.8,3131.0,0.69226081]
[1732041238478,3.19259,3132.3,3131.3,5.0]
[1732041238682,3.27335305,3132.4,3131.4,0.6284]
[1732041238892,3.19348,3131.4,3130.7,0.6284]
[1732041239041,3.19316,3131.7,3131.1,5.0]
[1732041239439,3.19326,3131.6,3131.1,5.0]
[1732041239645,3.19336,3131.5,3130.8,5.5730146]
[1732041239886,3.19351,3131.4,3130.8,0.55]
[1732041240397,3.19325,3131.6,3130.7,0.6284]
[1732041240606,3.1939,3131.0,3130.7,0.6284]
[1732041241138,3.19407,3130.8,3130.7,0.6284]
[1732041241389,3.19407,3130.8,3130.2,0.6284]
[1732041241604,3.19341,3131.5,3130.2,0.6284]
[1732041241911,6.38812,3130.9,3130.2,0.6284]
[1732041242406,3.19406,3130.9,3130.2,0.6284]
[1732041242793,1.0196,3131.7,3130.4,0.6284]
[1732041243000,3.19334,3131.6,3130.8,0.6284]
[1732041243886,4.26064132,3132.1,3130.8,0.6284]
[1732041244065,3.19364,3131.3,3130.8,0.6284]
[1732041244261,3.19352,3131.4,3130.8,0.6284]
[1732041244464,3.19369,3131.2,3130.8,0.6284]
[1732041244962,3.19348,3131.4,3130.8,0.6284]
[1732041245165,3.19362,3131.3,3130.8,0.6284]
[1732041245611,3.1932,3131.7,3130.9,0.02912677]
[1732041245770,3.19327,3131.6,3130.8,0.6284]
[1732041245972,3.19295,3131.9,3130.9,0.55]
[1732041246171,3.19313,3131.8,3130.9,0.55]
[1732041246368,6.19295,3131.9,3131.0,0.6284]
[1732041246593,3.19316,3131.7,3131.0,0.6284]
[1732041246912,3.19336,3131.5,3131.0,0.6284]
[1732041247605,3.19369,3131.2,3131.0,0.6284]